[Event "Titled Tuesday Blitz March 22 Early 2022"]
[White "Dronavalli, Harika"]
[Black "Demin, Vladimir"]
[WhiteFideId "5015197"]
[BlackFideId "4167457"]
[WhiteElo "2382"]
[BlackElo "2532"]
[Result "1/2-1/2"]
[Round "10"]
[TimeControl "180+1"]
[Date "2022.03.22"]
[WhiteClock "0:00:18"]
[BlackClock "0:00:07"]

1. d4 {[%clk 0:03:00]}  Nf6 {[%clk 0:02:59]} 2. Nf3 {[%clk 0:03:00]}  d5 {[%clk 0:02:58]} 3. g3 {[%clk 0:02:59]}  e6 {[%clk 0:02:58]} 4. Bg2 {[%clk 0:02:59]}  Be7 {[%clk 0:02:59]} 5. O-O {[%clk 0:02:58]}  O-O {[%clk 0:02:59]} 6. b3 {[%clk 0:02:58]}  c5 {[%clk 0:02:53]} 7. dxc5 {[%clk 0:02:48]}  Bxc5 {[%clk 0:02:51]} 8. Bb2 {[%clk 0:02:49]}  Nc6 {[%clk 0:02:51]} 9. a3 {[%clk 0:02:48]}  a5 {[%clk 0:02:50]} 10. Nbd2 {[%clk 0:02:47]}  b5 {[%clk 0:02:43]} 11. c4 {[%clk 0:02:29]}  bxc4 {[%clk 0:02:41]} 12. bxc4 {[%clk 0:02:30]}  Ba6 {[%clk 0:02:42]} 13. Rc1 {[%clk 0:02:23]}  dxc4 {[%clk 0:02:01]} 14. Nxc4 {[%clk 0:02:22]}  Nd5 {[%clk 0:01:51]} 15. Nce5 {[%clk 0:01:55]}  Nxe5 {[%clk 0:01:47]} 16. Rxc5 {[%clk 0:01:55]}  Nc4 {[%clk 0:01:27]} 17. Ba1 {[%clk 0:01:35]}  Nxa3 {[%clk 0:01:12]} 18. Qd4 {[%clk 0:01:29]}  f6 {[%clk 0:01:11]} 19. Ng5 {[%clk 0:01:17]}  Nb4 {[%clk 0:00:21]} 20. Qxd8 {[%clk 0:00:51]}  Raxd8 {[%clk 0:00:20]} 21. Nxe6 {[%clk 0:00:50]}  Bxe2 {[%clk 0:00:18]} 22. Nxd8 {[%clk 0:00:42]}  Bxf1 {[%clk 0:00:15]} 23. Bxf1 {[%clk 0:00:41]}  Rxd8 {[%clk 0:00:14]} 24. Rxa5 {[%clk 0:00:42]}  Nac2 {[%clk 0:00:12]} 25. Bc4+ {[%clk 0:00:32]}  Kh8 {[%clk 0:00:11]} 26. Bc3 {[%clk 0:00:33]}  h6 {[%clk 0:00:08]} 27. Kg2 {[%clk 0:00:32]}  Rc8 {[%clk 0:00:08]} 28. Bxb4 {[%clk 0:00:23]}  Rxc4 {[%clk 0:00:07]} 29. Bd2 {[%clk 0:00:21]}  Rc7 {[%clk 0:00:07]} 30. h4 {[%clk 0:00:19]}  Nd4 {[%clk 0:00:07]} 31. Ra8+ {[%clk 0:00:19]}  Kh7 {[%clk 0:00:06]} 32. Be3 {[%clk 0:00:20]}  Nf5 {[%clk 0:00:06]} 33. Bf4 {[%clk 0:00:21]}  Rd7 {[%clk 0:00:06]} 34. Ra5 {[%clk 0:00:21]}  Nd4 {[%clk 0:00:06]} 35. h5 {[%clk 0:00:21]}  Ne6 {[%clk 0:00:06]} 36. Be3 {[%clk 0:00:20]}  Ng5 {[%clk 0:00:06]} 37. Bxg5 {[%clk 0:00:21]}  hxg5 {[%clk 0:00:06]} 38. Ra8 {[%clk 0:00:20]}  g4 {[%clk 0:00:05]} 39. Ra4 {[%clk 0:00:19]}  Rd5 {[%clk 0:00:05]} 40. Rxg4 {[%clk 0:00:19]}  Rxh5 {[%clk 0:00:05]} 41. Rc4 {[%clk 0:00:18]}  Rd5 {[%clk 0:00:05]} 42. Rh4+ {[%clk 0:00:19]}  Kg6 {[%clk 0:00:05]} 43. Ra4 {[%clk 0:00:19]}  Rg5 {[%clk 0:00:05]} 44. f4 {[%clk 0:00:20]}  Rb5 {[%clk 0:00:05]} 45. Kh3 {[%clk 0:00:20]}  Rb1 {[%clk 0:00:05]} 46. Ra5 {[%clk 0:00:19]}  Rb6 {[%clk 0:00:04]} 47. Kg4 {[%clk 0:00:19]}  Kh7 {[%clk 0:00:05]} 48. Rh5+ {[%clk 0:00:19]}  Kg6 {[%clk 0:00:04]} 49. Rc5 {[%clk 0:00:20]}  Rb1 {[%clk 0:00:04]} 50. Ra5 {[%clk 0:00:19]}  Rc1 {[%clk 0:00:04]} 51. f5+ {[%clk 0:00:19]}  Kh7 {[%clk 0:00:04]} 52. Ra4 {[%clk 0:00:19]}  Rd1 {[%clk 0:00:04]} 53. Rf4 {[%clk 0:00:20]}  Rc1 {[%clk 0:00:04]} 54. Kh3 {[%clk 0:00:20]}  Rh1+ {[%clk 0:00:04]} 55. Kg2 {[%clk 0:00:21]}  Ra1 {[%clk 0:00:05]} 56. Rh4+ {[%clk 0:00:21]}  Kg8 {[%clk 0:00:04]} 57. Rc4 {[%clk 0:00:22]}  Ra2+ {[%clk 0:00:05]} 58. Kh3 {[%clk 0:00:21]}  Kh7 {[%clk 0:00:06]} 59. Kg4 {[%clk 0:00:19]}  Ra1 {[%clk 0:00:05]} 60. Rf4 {[%clk 0:00:19]}  Rh1 {[%clk 0:00:05]} 61. Rb4 {[%clk 0:00:19]}  Rh2 {[%clk 0:00:05]} 62. Rb8 {[%clk 0:00:18]}  Rh1 {[%clk 0:00:05]} 63. Rb4 {[%clk 0:00:18]}  Rh2 {[%clk 0:00:05]} 64. Kf3 {[%clk 0:00:18]}  Rh1 {[%clk 0:00:05]} 65. Kg2 {[%clk 0:00:18]}  Ra1 {[%clk 0:00:06]} 66. Rh4+ {[%clk 0:00:19]}  Kg8 {[%clk 0:00:06]} 67. Rc4 {[%clk 0:00:19]}  Ra2+ {[%clk 0:00:07]} 68. Kh3 {[%clk 0:00:19]}  Kh7 {[%clk 0:00:07]} 69. Rh4+ {[%clk 0:00:17]}  Kg8 {[%clk 0:00:07]} 70. Re4 {[%clk 0:00:17]}  Kh7 {[%clk 0:00:07]} 71. Rh4+ {[%clk 0:00:18]}  Kg8 {[%clk 0:00:07]} 72. Rc4 {[%clk 0:00:18]} 1/2-1/2


[Site "https://www.chess.com"]

[Event "Titled Tuesday Blitz March 22 Early 2022"]
[White "Hernandez Bonilla, Amelia"]
[Black "Donchenko, Anatoly"]
[WhiteFideId "3900193"]
[BlackFideId "4106091"]
[WhiteElo "2097"]
[BlackElo "2339"]
[Result "0-1"]
[Round "10"]
[TimeControl "180+1"]
[Date "2022.03.22"]
[WhiteClock "0:00:01"]
[BlackClock "0:01:27"]

1. d4 {[%clk 0:03:00]}  d5 {[%clk 0:02:58]} 2. Bf4 {[%clk 0:03:00]}  c5 {[%clk 0:02:57]} 3. e3 {[%clk 0:02:59]}  Nc6 {[%clk 0:02:57]} 4. Nf3 {[%clk 0:02:59]}  e6 {[%clk 0:02:54]} 5. c3 {[%clk 0:02:52]}  Bd6 {[%clk 0:02:54]} 6. Bg3 {[%clk 0:02:47]}  Nge7 {[%clk 0:02:53]} 7. Nbd2 {[%clk 0:02:47]}  b6 {[%clk 0:02:53]} 8. Bd3 {[%clk 0:02:46]}  Bb7 {[%clk 0:02:52]} 9. O-O {[%clk 0:02:44]}  Qc7 {[%clk 0:02:52]} 10. e4 {[%clk 0:02:37]}  Bxg3 {[%clk 0:02:51]} 11. hxg3 {[%clk 0:02:37]}  dxe4 {[%clk 0:02:50]} 12. Nxe4 {[%clk 0:02:38]}  cxd4 {[%clk 0:02:49]} 13. cxd4 {[%clk 0:02:34]}  O-O {[%clk 0:02:47]} 14. Rc1 {[%clk 0:02:31]}  Qd7 {[%clk 0:02:43]} 15. Bb1 {[%clk 0:02:24]}  Rfd8 {[%clk 0:02:40]} 16. Nfg5 {[%clk 0:01:38]}  Ng6 {[%clk 0:02:36]} 17. Qh5 {[%clk 0:01:35]}  h6 {[%clk 0:02:36]} 18. Nxf7 {[%clk 0:01:28]}  Qxf7 {[%clk 0:02:35]} 19. Ng5 {[%clk 0:01:28]}  Qf6 {[%clk 0:02:29]} 20. Nxe6 {[%clk 0:01:16]}  Qxe6 {[%clk 0:02:24]} 21. Bxg6 {[%clk 0:01:16]}  Rd5 {[%clk 0:02:20]} 22. Rfe1 {[%clk 0:00:50]}  Qxe1+ {[%clk 0:02:19]} 23. Rxe1 {[%clk 0:00:50]}  Rxh5 {[%clk 0:02:19]} 24. Bxh5 {[%clk 0:00:51]}  Nxd4 {[%clk 0:02:17]} 25. Re7 {[%clk 0:00:48]}  Bc6 {[%clk 0:02:10]} 26. Bf7+ {[%clk 0:00:32]}  Kh8 {[%clk 0:02:06]} 27. Rc7 {[%clk 0:00:26]}  a5 {[%clk 0:02:03]} 28. f3 {[%clk 0:00:24]}  Rd8 {[%clk 0:02:01]} 29. Kf2 {[%clk 0:00:22]}  Rd7 {[%clk 0:01:49]} 30. Rc8+ {[%clk 0:00:21]}  Kh7 {[%clk 0:01:49]} 31. Bc4 {[%clk 0:00:17]}  g6 {[%clk 0:01:46]} 32. Ke3 {[%clk 0:00:14]}  b5 {[%clk 0:01:46]} 33. Bg8+ {[%clk 0:00:13]}  Kg7 {[%clk 0:01:45]} 34. b3 {[%clk 0:00:10]}  Nf5+ {[%clk 0:01:44]} 35. Kf4 {[%clk 0:00:10]}  Bd5 {[%clk 0:01:38]} 36. g4 {[%clk 0:00:10]}  Bxg8 {[%clk 0:01:37]} 37. gxf5 {[%clk 0:00:10]}  gxf5 {[%clk 0:01:37]} 38. Kxf5 {[%clk 0:00:10]}  Rd2 {[%clk 0:01:35]} 39. Rc7+ {[%clk 0:00:09]}  Bf7 {[%clk 0:01:35]} 40. g4 {[%clk 0:00:06]}  Rxa2 {[%clk 0:01:34]} 41. f4 {[%clk 0:00:06]}  Rf2 {[%clk 0:01:32]} 42. Rb7 {[%clk 0:00:03]}  b4 {[%clk 0:01:29]} 43. Ra7 {[%clk 0:00:03]}  Rf3 {[%clk 0:01:28]} 44. Rxa5 {[%clk 0:00:02]}  Rxb3 {[%clk 0:01:27]} 45. Ra7 {[%clk 0:00:01]}  Rb1 {[%clk 0:01:27]} 0-1


[Site "https://www.chess.com"]

[Event "Titled Tuesday Blitz March 22 Early 2022"]
[White "Ianov, Viktor"]
[Black "Koridze, Lile"]
[WhiteFideId "14102730"]
[BlackFideId "13612514"]
[WhiteElo "2161"]
[BlackElo "1999"]
[Result "1-0"]
[Round "10"]
[TimeControl "180+1"]
[Date "2022.03.22"]
[WhiteClock "0:02:44"]
[BlackClock "0:02:13"]

1. Nf3 {[%clk 0:03:00]}  Nf6 {[%clk 0:02:58]} 2. g3 {[%clk 0:03:00]}  d5 {[%clk 0:02:55]} 3. Bg2 {[%clk 0:02:59]}  c5 {[%clk 0:02:53]} 4. O-O {[%clk 0:02:59]}  Nc6 {[%clk 0:02:53]} 5. d4 {[%clk 0:02:59]}  cxd4 {[%clk 0:02:51]} 6. Nxd4 {[%clk 0:02:58]}  e5 {[%clk 0:02:51]} 7. Nxc6 {[%clk 0:02:58]}  bxc6 {[%clk 0:02:52]} 8. c4 {[%clk 0:02:58]}  Be6 {[%clk 0:02:50]} 9. Nc3 {[%clk 0:02:58]}  Be7 {[%clk 0:02:49]} 10. Bg5 {[%clk 0:02:57]}  e4 {[%clk 0:02:48]} 11. Qa4 {[%clk 0:02:56]}  O-O {[%clk 0:02:43]} 12. Rad1 {[%clk 0:02:54]}  Qb6 {[%clk 0:02:37]} 13. Bxf6 {[%clk 0:02:53]}  Bxf6 {[%clk 0:02:36]} 14. cxd5 {[%clk 0:02:53]}  cxd5 {[%clk 0:02:34]} 15. Nxd5 {[%clk 0:02:53]}  Bxd5 {[%clk 0:02:34]} 16. Rxd5 {[%clk 0:02:52]}  Qxb2 {[%clk 0:02:35]} 17. e3 {[%clk 0:02:52]}  g6 {[%clk 0:02:25]} 18. Bxe4 {[%clk 0:02:51]}  Rfe8 {[%clk 0:02:18]} 19. Rb5 {[%clk 0:02:46]}  Rxe4 {[%clk 0:02:13]} 20. Qxe4 {[%clk 0:02:44]} 1-0


[Site "https://www.chess.com"]

[Event "Titled Tuesday Blitz March 22 Early 2022"]
[White "Jaskolka, Tomasz"]
[Black "Rosenberg, Evan S"]
[WhiteFideId "1170791"]
[BlackFideId "2019299"]
[WhiteElo "2073"]
[BlackElo "2297"]
[Result "1-0"]
[Round "10"]
[TimeControl "180+1"]
[Date "2022.03.22"]
[WhiteClock "0:00:32"]
[BlackClock "0:00:08"]

1. e4 {[%clk 0:03:00]}  e5 {[%clk 0:02:59]} 2. Nf3 {[%clk 0:02:58]}  Nc6 {[%clk 0:03:00]} 3. Bc4 {[%clk 0:02:58]}  Bc5 {[%clk 0:02:59]} 4. d3 {[%clk 0:02:56]}  Nf6 {[%clk 0:02:57]} 5. c3 {[%clk 0:02:56]}  O-O {[%clk 0:02:53]} 6. Nbd2 {[%clk 0:02:57]}  d5 {[%clk 0:02:52]} 7. Bb3 {[%clk 0:02:49]}  dxe4 {[%clk 0:02:46]} 8. dxe4 {[%clk 0:02:49]}  a5 {[%clk 0:02:41]} 9. Qe2 {[%clk 0:02:47]}  a4 {[%clk 0:02:34]} 10. Bc2 {[%clk 0:02:47]}  a3 {[%clk 0:02:32]} 11. b4 {[%clk 0:02:45]}  Bb6 {[%clk 0:02:12]} 12. Nc4 {[%clk 0:02:44]}  Be6 {[%clk 0:02:01]} 13. Nxb6 {[%clk 0:02:43]}  cxb6 {[%clk 0:02:01]} 14. O-O {[%clk 0:02:39]}  h6 {[%clk 0:01:57]} 15. b5 {[%clk 0:02:17]}  Na5 {[%clk 0:01:48]} 16. Nxe5 {[%clk 0:02:16]}  Qc7 {[%clk 0:01:44]} 17. Bf4 {[%clk 0:02:12]}  Qxc3 {[%clk 0:01:40]} 18. Rac1 {[%clk 0:02:12]}  Rfe8 {[%clk 0:01:14]} 19. Bb3 {[%clk 0:02:06]}  Qb4 {[%clk 0:01:01]} 20. Bxe6 {[%clk 0:01:59]}  Rxe6 {[%clk 0:01:01]} 21. Rfe1 {[%clk 0:01:49]}  Rae8 {[%clk 0:00:56]} 22. Qd3 {[%clk 0:01:34]}  Rxe5 {[%clk 0:00:48]} 23. Bxe5 {[%clk 0:01:35]}  Rxe5 {[%clk 0:00:48]} 24. Rc8+ {[%clk 0:01:31]}  Kh7 {[%clk 0:00:36]} 25. Rec1 {[%clk 0:01:30]}  Qxe4 {[%clk 0:00:31]} 26. Qc3 {[%clk 0:01:22]}  Nd5 {[%clk 0:00:27]} 27. Qd2 {[%clk 0:01:17]}  Nf4 {[%clk 0:00:24]} 28. f3 {[%clk 0:01:11]}  Qe3+ {[%clk 0:00:14]} 29. Qxe3 {[%clk 0:01:11]}  Rxe3 {[%clk 0:00:15]} 30. R1c2 {[%clk 0:01:06]}  Nd3 {[%clk 0:00:10]} 31. h4 {[%clk 0:01:03]}  Re1+ {[%clk 0:00:10]} 32. Kh2 {[%clk 0:01:03]}  Re5 {[%clk 0:00:09]} 33. Rf8 {[%clk 0:01:02]}  Kg6 {[%clk 0:00:09]} 34. g4 {[%clk 0:01:01]}  Rxb5 {[%clk 0:00:07]} 35. Kg3 {[%clk 0:00:59]}  Rb2 {[%clk 0:00:07]} 36. Rc7 {[%clk 0:00:57]}  Nc6 {[%clk 0:00:05]} 37. h5+ {[%clk 0:00:50]}  Kf6 {[%clk 0:00:04]} 38. Rfxf7+ {[%clk 0:00:47]}  Ke5 {[%clk 0:00:05]} 39. Rxb7 {[%clk 0:00:45]}  Kd4 {[%clk 0:00:05]} 40. Rxg7 {[%clk 0:00:44]}  Nce5 {[%clk 0:00:05]} 41. g5 {[%clk 0:00:38]}  hxg5 {[%clk 0:00:04]} 42. h6 {[%clk 0:00:39]}  Ne1 {[%clk 0:00:04]} 43. h7 {[%clk 0:00:36]}  Rg2+ {[%clk 0:00:04]} 44. Kh3 {[%clk 0:00:36]}  Rg1 {[%clk 0:00:04]} 45. Rgd7+ {[%clk 0:00:33]}  Ke3 {[%clk 0:00:04]} 46. Kh2 {[%clk 0:00:31]}  Rg2+ {[%clk 0:00:04]} 47. Kh1 {[%clk 0:00:31]}  Kf2 {[%clk 0:00:04]} 48. Rd2+ {[%clk 0:00:30]}  Kxf3 {[%clk 0:00:05]} 49. Rxg2 {[%clk 0:00:29]}  Nxg2 {[%clk 0:00:06]} 50. h8=Q {[%clk 0:00:29]}  Ng4 {[%clk 0:00:06]} 51. Qh3+ {[%clk 0:00:30]}  Kf2 {[%clk 0:00:06]} 52. Qxg2+ {[%clk 0:00:30]}  Ke3 {[%clk 0:00:07]} 53. Qxg4 {[%clk 0:00:31]}  Kf2 {[%clk 0:00:07]} 54. Qxg5 {[%clk 0:00:30]}  b5 {[%clk 0:00:07]} 55. Rxb5 {[%clk 0:00:30]}  Kf1 {[%clk 0:00:08]} 56. Rb3 {[%clk 0:00:30]}  Kf2 {[%clk 0:00:08]} 57. Qd2+ {[%clk 0:00:31]}  Kf1 {[%clk 0:00:08]} 58. Rb1# {[%clk 0:00:32]} 1-0


[Site "https://www.chess.com"]

[Event "Titled Tuesday Blitz March 22 Early 2022"]
[White "Jeet, Jain"]
[Black "Mikhailovsky, Vladimir"]
[WhiteFideId "5073022"]
[BlackFideId "34105414"]
[WhiteElo "2085"]
[BlackElo "2371"]
[Result "0-1"]
[Round "10"]
[TimeControl "180+1"]
[Date "2022.03.22"]
[WhiteClock "0:02:02"]
[BlackClock "0:01:27"]

1. d4 {[%clk 0:03:00]}  Nf6 {[%clk 0:02:59]} 2. Nf3 {[%clk 0:03:00]}  d5 {[%clk 0:02:58]} 3. Bf4 {[%clk 0:03:00]}  c5 {[%clk 0:02:55]} 4. e3 {[%clk 0:03:01]}  e6 {[%clk 0:02:54]} 5. Nbd2 {[%clk 0:02:58]}  Bd6 {[%clk 0:02:54]} 6. Bg3 {[%clk 0:02:57]}  Qc7 {[%clk 0:02:54]} 7. Ne5 {[%clk 0:02:55]}  Nfd7 {[%clk 0:02:45]} 8. f4 {[%clk 0:02:52]}  O-O {[%clk 0:02:45]} 9. c3 {[%clk 0:02:51]}  f6 {[%clk 0:02:44]} 10. Nd3 {[%clk 0:02:45]}  c4 {[%clk 0:02:43]} 11. Nf2 {[%clk 0:02:44]}  e5 {[%clk 0:02:43]} 12. Qf3 {[%clk 0:02:40]}  e4 {[%clk 0:02:29]} 13. Nfxe4 {[%clk 0:02:36]}  dxe4 {[%clk 0:02:27]} 14. Qxe4 {[%clk 0:02:37]}  Nb6 {[%clk 0:02:24]} 15. Nxc4 {[%clk 0:02:27]}  f5 {[%clk 0:01:52]} 16. Qf3 {[%clk 0:02:21]}  Be6 {[%clk 0:01:36]} 17. Nxd6 {[%clk 0:02:18]}  Qxd6 {[%clk 0:01:37]} 18. Qxb7 {[%clk 0:02:02]}  Bd5 {[%clk 0:01:27]} 0-1


[Site "https://www.chess.com"]

[Event "Titled Tuesday Blitz March 22 Early 2022"]
[White "Kett, Tim"]
[Black "Popadic, Dragan"]
[WhiteFideId "1801210"]
[BlackFideId "913650"]
[WhiteElo "2098"]
[BlackElo "2222"]
[Result "0-1"]
[Round "10"]
[TimeControl "180+1"]
[Date "2022.03.22"]
[WhiteClock "0:00:14"]
[BlackClock "0:00:56"]

1. e4 {[%clk 0:03:00]}  c5 {[%clk 0:02:59]} 2. Nf3 {[%clk 0:02:59]}  Nc6 {[%clk 0:02:59]} 3. d4 {[%clk 0:03:00]}  cxd4 {[%clk 0:02:59]} 4. Nxd4 {[%clk 0:03:01]}  Nf6 {[%clk 0:02:59]} 5. Nc3 {[%clk 0:03:01]}  e5 {[%clk 0:02:59]} 6. Ndb5 {[%clk 0:03:00]}  d6 {[%clk 0:02:59]} 7. Bg5 {[%clk 0:03:00]}  a6 {[%clk 0:03:00]} 8. Bxf6 {[%clk 0:03:00]}  gxf6 {[%clk 0:02:59]} 9. Na3 {[%clk 0:03:01]}  b5 {[%clk 0:02:59]} 10. Nd5 {[%clk 0:03:01]}  Bg7 {[%clk 0:03:00]} 11. c3 {[%clk 0:02:55]}  f5 {[%clk 0:02:55]} 12. Bd3 {[%clk 0:02:55]}  Ne7 {[%clk 0:02:54]} 13. Nxe7 {[%clk 0:02:54]}  Qxe7 {[%clk 0:02:54]} 14. Nc2 {[%clk 0:02:54]}  O-O {[%clk 0:02:48]} 15. Ne3 {[%clk 0:02:49]}  f4 {[%clk 0:02:47]} 16. Nd5 {[%clk 0:02:48]}  Qd8 {[%clk 0:02:47]} 17. g3 {[%clk 0:02:46]}  Be6 {[%clk 0:02:47]} 18. gxf4 {[%clk 0:02:44]}  Bxd5 {[%clk 0:02:47]} 19. exd5 {[%clk 0:02:43]}  e4 {[%clk 0:02:46]} 20. Bc2 {[%clk 0:02:31]}  f5 {[%clk 0:02:46]} 21. Qh5 {[%clk 0:02:03]}  b4 {[%clk 0:02:40]} 22. Rg1 {[%clk 0:01:56]}  bxc3 {[%clk 0:02:38]} 23. bxc3 {[%clk 0:01:55]}  Qf6 {[%clk 0:02:38]} 24. Rg3 {[%clk 0:01:46]}  Kh8 {[%clk 0:02:36]} 25. Ke2 {[%clk 0:01:41]}  Rac8 {[%clk 0:02:34]} 26. Rag1 {[%clk 0:01:39]}  Rf7 {[%clk 0:02:27]} 27. Rh3 {[%clk 0:01:25]}  Bf8 {[%clk 0:02:10]} 28. Qg5 {[%clk 0:01:13]}  Bg7 {[%clk 0:01:55]} 29. Qh5 {[%clk 0:01:08]}  Bf8 {[%clk 0:01:52]} 30. Qg5 {[%clk 0:01:08]}  Qxg5 {[%clk 0:01:51]} 31. fxg5 {[%clk 0:01:01]}  Rfc7 {[%clk 0:01:48]} 32. g6 {[%clk 0:00:52]}  h6 {[%clk 0:01:47]} 33. Rgg3 {[%clk 0:00:19]}  f4 {[%clk 0:01:36]} 34. Rg4 {[%clk 0:00:19]}  f3+ {[%clk 0:01:36]} 35. Kd2 {[%clk 0:00:18]}  e3+ {[%clk 0:01:15]} 36. fxe3 {[%clk 0:00:17]}  Rxc3 {[%clk 0:01:10]} 37. Bd3 {[%clk 0:00:17]}  Ra3 {[%clk 0:01:06]} 38. Rxf3 {[%clk 0:00:16]}  Rxa2+ {[%clk 0:01:03]} 39. Kd1 {[%clk 0:00:17]}  Bg7 {[%clk 0:01:01]} 40. Bc2 {[%clk 0:00:14]}  Rcxc2 {[%clk 0:00:56]} 0-1


[Site "https://www.chess.com"]

[Event "Titled Tuesday Blitz March 22 Early 2022"]
[White "Khamzin, Olzhas"]
[Black "Kulkarni, Rakesh"]
[WhiteFideId "13701690"]
[BlackFideId "5037077"]
[WhiteElo "2194"]
[BlackElo "2246"]
[Result "0-1"]
[Round "10"]
[TimeControl "180+1"]
[Date "2022.03.22"]
[WhiteClock "0:00:41"]
[BlackClock "0:00:51"]

1. d4 {[%clk 0:03:00]}  Nf6 {[%clk 0:02:59]} 2. Nc3 {[%clk 0:03:01]}  d5 {[%clk 0:02:59]} 3. Bg5 {[%clk 0:03:01]}  Ne4 {[%clk 0:02:54]} 4. Nxe4 {[%clk 0:02:59]}  dxe4 {[%clk 0:02:52]} 5. e3 {[%clk 0:03:00]}  Bf5 {[%clk 0:02:47]} 6. c3 {[%clk 0:03:01]}  c6 {[%clk 0:02:38]} 7. Bc4 {[%clk 0:02:59]}  Qb6 {[%clk 0:02:37]} 8. b4 {[%clk 0:02:59]}  e6 {[%clk 0:02:37]} 9. g4 {[%clk 0:02:57]}  Bg6 {[%clk 0:02:37]} 10. Qb3 {[%clk 0:02:57]}  h6 {[%clk 0:02:26]} 11. Bh4 {[%clk 0:02:52]}  Qc7 {[%clk 0:02:22]} 12. a4 {[%clk 0:02:46]}  Be7 {[%clk 0:02:18]} 13. Bg3 {[%clk 0:02:45]}  Bd6 {[%clk 0:02:19]} 14. Ne2 {[%clk 0:02:45]}  O-O {[%clk 0:02:18]} 15. h4 {[%clk 0:02:46]}  Nd7 {[%clk 0:02:13]} 16. h5 {[%clk 0:02:30]}  Bh7 {[%clk 0:02:10]} 17. g5 {[%clk 0:02:29]}  hxg5 {[%clk 0:02:09]} 18. h6 {[%clk 0:02:28]}  gxh6 {[%clk 0:02:05]} 19. Rxh6 {[%clk 0:02:26]}  Kg7 {[%clk 0:02:05]} 20. Rh1 {[%clk 0:02:18]}  Bg6 {[%clk 0:02:00]} 21. O-O-O {[%clk 0:02:18]}  Rh8 {[%clk 0:01:39]} 22. Rhg1 {[%clk 0:00:58]}  Bxg3 {[%clk 0:01:36]} 23. Rxg3 {[%clk 0:00:58]}  Rh2 {[%clk 0:01:32]} 24. Rxg5 {[%clk 0:00:56]}  Rxf2 {[%clk 0:01:33]} 25. Rdg1 {[%clk 0:00:57]}  Nf8 {[%clk 0:01:32]} 26. Nf4 {[%clk 0:00:56]}  Rxf4 {[%clk 0:01:29]} 27. exf4 {[%clk 0:00:55]}  Qxf4+ {[%clk 0:01:30]} 28. Kb1 {[%clk 0:00:55]}  b5 {[%clk 0:01:14]} 29. axb5 {[%clk 0:00:53]}  cxb5 {[%clk 0:01:15]} 30. Bxb5 {[%clk 0:00:54]}  e3+ {[%clk 0:01:12]} 31. Bd3 {[%clk 0:00:54]}  a5 {[%clk 0:01:08]} 32. b5 {[%clk 0:00:49]}  a4 {[%clk 0:01:07]} 33. Qc2 {[%clk 0:00:45]}  Rb8 {[%clk 0:00:55]} 34. Ka2 {[%clk 0:00:41]}  Qf2 {[%clk 0:00:54]} 35. Bxg6 {[%clk 0:00:40]}  fxg6 {[%clk 0:00:52]} 36. c4 {[%clk 0:00:40]}  Qxc2+ {[%clk 0:00:51]} 37. Ka3 {[%clk 0:00:41]}  Qb3# {[%clk 0:00:51]} 0-1


[Site "https://www.chess.com"]

[Event "Titled Tuesday Blitz March 22 Early 2022"]
[White "Kowalczyk, Pawel"]
[Black "Janaszak, Dawid"]
[WhiteFideId "1130641"]
[BlackFideId "1119206"]
[WhiteElo "2344"]
[BlackElo "2199"]
[Result "1/2-1/2"]
[Round "10"]
[TimeControl "180+1"]
[Date "2022.03.22"]
[WhiteClock "0:01:14"]
[BlackClock "0:00:31"]

1. e4 {[%clk 0:03:00]}  e5 {[%clk 0:02:59]} 2. d4 {[%clk 0:03:00]}  exd4 {[%clk 0:02:57]} 3. c3 {[%clk 0:03:01]}  d3 {[%clk 0:02:58]} 4. Bxd3 {[%clk 0:03:00]}  Nc6 {[%clk 0:02:57]} 5. Nf3 {[%clk 0:03:01]}  d6 {[%clk 0:02:52]} 6. h3 {[%clk 0:02:58]}  Nf6 {[%clk 0:02:49]} 7. O-O {[%clk 0:02:58]}  Be7 {[%clk 0:02:49]} 8. Qe2 {[%clk 0:02:58]}  O-O {[%clk 0:02:49]} 9. Rd1 {[%clk 0:02:59]}  Nd7 {[%clk 0:02:47]} 10. Bf4 {[%clk 0:02:57]}  Bf6 {[%clk 0:02:44]} 11. Na3 {[%clk 0:02:53]}  Re8 {[%clk 0:02:43]} 12. Qc2 {[%clk 0:02:45]}  Nde5 {[%clk 0:02:38]} 13. Nxe5 {[%clk 0:02:44]}  Bxe5 {[%clk 0:02:35]} 14. Bxe5 {[%clk 0:02:29]}  Nxe5 {[%clk 0:02:35]} 15. f4 {[%clk 0:02:26]}  Nxd3 {[%clk 0:02:22]} 16. Qxd3 {[%clk 0:02:27]}  Qe7 {[%clk 0:02:20]} 17. Re1 {[%clk 0:02:25]}  Bd7 {[%clk 0:02:14]} 18. Nc2 {[%clk 0:02:19]}  Bc6 {[%clk 0:02:12]} 19. e5 {[%clk 0:02:17]}  dxe5 {[%clk 0:02:10]} 20. Rxe5 {[%clk 0:02:16]}  Qf6 {[%clk 0:02:10]} 21. Rxe8+ {[%clk 0:02:13]}  Rxe8 {[%clk 0:02:11]} 22. Re1 {[%clk 0:02:05]}  Rd8 {[%clk 0:01:53]} 23. Qe3 {[%clk 0:02:00]}  h6 {[%clk 0:01:38]} 24. Nd4 {[%clk 0:01:59]}  Re8 {[%clk 0:01:33]} 25. Qf2 {[%clk 0:01:55]}  Rxe1+ {[%clk 0:01:33]} 26. Qxe1 {[%clk 0:01:55]}  Qxf4 {[%clk 0:01:29]} 27. Nxc6 {[%clk 0:01:55]}  bxc6 {[%clk 0:01:30]} 28. Qe8+ {[%clk 0:01:55]}  Kh7 {[%clk 0:01:30]} 29. Qxc6 {[%clk 0:01:56]}  Qe3+ {[%clk 0:01:26]} 30. Kh2 {[%clk 0:01:52]}  Qf4+ {[%clk 0:01:23]} 31. g3 {[%clk 0:01:50]}  Qd2+ {[%clk 0:01:18]} 32. Qg2 {[%clk 0:01:50]}  Qd3 {[%clk 0:01:13]} 33. Qf2 {[%clk 0:01:47]}  f5 {[%clk 0:01:09]} 34. a4 {[%clk 0:01:39]}  a5 {[%clk 0:01:09]} 35. b4 {[%clk 0:01:38]}  g6 {[%clk 0:00:41]} 36. bxa5 {[%clk 0:01:32]}  Qxc3 {[%clk 0:00:41]} 37. a6 {[%clk 0:01:30]}  Qa5 {[%clk 0:00:41]} 38. a7 {[%clk 0:01:27]}  c5 {[%clk 0:00:38]} 39. Qxc5 {[%clk 0:01:20]}  Qxc5 {[%clk 0:00:36]} 40. a8=Q {[%clk 0:01:20]}  Qc2+ {[%clk 0:00:36]} 41. Kg1 {[%clk 0:01:19]}  Qc1+ {[%clk 0:00:34]} 42. Kf2 {[%clk 0:01:19]}  Qd2+ {[%clk 0:00:34]} 43. Kf3 {[%clk 0:01:19]}  Qd3+ {[%clk 0:00:32]} 44. Kf2 {[%clk 0:01:14]}  Qd2+ {[%clk 0:00:31]} 45. Kf1 {[%clk 0:01:14]}  Qd1+ {[%clk 0:00:31]} 46. Kf2 {[%clk 0:01:14]}  Qd2+ {[%clk 0:00:31]} 1/2-1/2


[Site "https://www.chess.com"]